[Event "Titled Tuesday Blitz July 4 Early 2023"]
[White "Cugimura97"]
[Black "Vivas Zamora, Fabian Ernesto"]
[BlackFideId "3902480"]
[WhiteElo "2688"]
[BlackElo "2423"]
[Result "1-0"]
[Round "4"]
[TimeControl "180+2"]
[Date "2023.07.04"]
[WhiteClock "0:01:04"]
[BlackClock "0:00:01"]
[Board "137"]

1. Nf3 {[%clk 0:03:00]}  Nf6 {[%clk 0:02:59]} 2. b3 {[%clk 0:03:00]}  g6 {[%clk 0:02:59]} 3. Bb2 {[%clk 0:03:00]}  Bg7 {[%clk 0:03:00]} 4. d4 {[%clk 0:02:59]}  O-O {[%clk 0:03:00]} 5. g3 {[%clk 0:02:59]}  c5 {[%clk 0:02:58]} 6. dxc5 {[%clk 0:02:56]}  Na6 {[%clk 0:02:57]} 7. Bd4 {[%clk 0:02:52]}  Ne8 {[%clk 0:02:33]} 8. c3 {[%clk 0:02:46]}  Qc7 {[%clk 0:02:30]} 9. Bxg7 {[%clk 0:02:39]}  Nxg7 {[%clk 0:02:31]} 10. b4 {[%clk 0:02:40]}  b6 {[%clk 0:02:26]} 11. cxb6 {[%clk 0:02:38]}  axb6 {[%clk 0:02:27]} 12. Bg2 {[%clk 0:02:36]}  Bb7 {[%clk 0:02:27]} 13. O-O {[%clk 0:02:36]}  Rfc8 {[%clk 0:02:26]} 14. Qb3 {[%clk 0:02:32]}  b5 {[%clk 0:02:10]} 15. Rc1 {[%clk 0:02:28]}  Qd6 {[%clk 0:01:54]} 16. Na3 {[%clk 0:02:25]}  Bd5 {[%clk 0:01:51]} 17. Nxb5 {[%clk 0:02:22]}  Qc6 {[%clk 0:01:04]} 18. Nbd4 {[%clk 0:02:16]}  Qb7 {[%clk 0:00:55]} 19. c4 {[%clk 0:02:15]}  Be4 {[%clk 0:00:52]} 20. a3 {[%clk 0:02:12]}  Ne6 {[%clk 0:00:48]} 21. Nxe6 {[%clk 0:02:09]}  dxe6 {[%clk 0:00:49]} 22. Qe3 {[%clk 0:01:55]}  Rc7 {[%clk 0:00:37]} 23. Nh4 {[%clk 0:01:53]}  Bxg2 {[%clk 0:00:34]} 24. Nxg2 {[%clk 0:01:54]}  Qc8 {[%clk 0:00:20]} 25. c5 {[%clk 0:01:53]}  Qb7 {[%clk 0:00:19]} 26. Nh4 {[%clk 0:01:52]}  Qb5 {[%clk 0:00:18]} 27. Nf3 {[%clk 0:01:51]}  Rca7 {[%clk 0:00:16]} 28. Qh6 {[%clk 0:01:50]}  f6 {[%clk 0:00:15]} 29. Qe3 {[%clk 0:01:39]}  Nxb4 {[%clk 0:00:13]} 30. Qxe6+ {[%clk 0:01:37]}  Kh8 {[%clk 0:00:13]} 31. Rab1 {[%clk 0:01:27]}  Qc6 {[%clk 0:00:11]} 32. Qc4 {[%clk 0:01:19]}  Nd5 {[%clk 0:00:10]} 33. Nd4 {[%clk 0:01:17]}  Qd7 {[%clk 0:00:03]} 34. c6 {[%clk 0:01:16]}  Qd8 {[%clk 0:00:04]} 35. Nb5 {[%clk 0:01:13]}  Ra4 {[%clk 0:00:03]} 36. Qc5 {[%clk 0:01:13]}  Nc7 {[%clk 0:00:03]} 37. Rd1 {[%clk 0:01:10]}  Qc8 {[%clk 0:00:03]} 38. Qxe7 {[%clk 0:01:03]}  Nxb5 {[%clk 0:00:03]} 39. Rd7 {[%clk 0:01:04]}  Qg8 {[%clk 0:00:02]} 40. Qxf6+ {[%clk 0:01:04]}  Qg7 {[%clk 0:00:01]} 41. Qxg7# {[%clk 0:01:04]} 1-0


[Site "https://www.chess.com"]

[Event "Titled Tuesday Blitz July 4 Early 2023"]
[White "Mazurkiewicz, Michal"]
[Black "Danielyan, Vahe"]
[WhiteFideId "1124943"]
[BlackFideId "13304828"]
[WhiteElo "2420"]
[BlackElo "2677"]
[Result "0-1"]
[Round "4"]
[TimeControl "180+2"]
[Date "2023.07.04"]
[WhiteClock "0:00:00"]
[BlackClock "0:00:41"]
[Board "139"]

1. e4 {[%clk 0:03:00]}  c6 {[%clk 0:03:00]} 2. d3 {[%clk 0:03:00]}  d5 {[%clk 0:03:00]} 3. Nd2 {[%clk 0:03:00]}  e5 {[%clk 0:02:58]} 4. Ngf3 {[%clk 0:03:01]}  Qc7 {[%clk 0:02:57]} 5. Qe2 {[%clk 0:02:53]}  Bd6 {[%clk 0:02:48]} 6. exd5 {[%clk 0:02:47]}  cxd5 {[%clk 0:02:47]} 7. Nxe5 {[%clk 0:02:48]}  Bxe5 {[%clk 0:02:39]} 8. d4 {[%clk 0:02:48]}  Nc6 {[%clk 0:02:39]} 9. Nf3 {[%clk 0:02:46]}  Bg4 {[%clk 0:02:14]} 10. dxe5 {[%clk 0:02:28]}  O-O-O {[%clk 0:02:14]} 11. c3 {[%clk 0:02:16]}  Re8 {[%clk 0:02:11]} 12. Bf4 {[%clk 0:02:15]}  f6 {[%clk 0:01:51]} 13. O-O-O {[%clk 0:02:10]}  fxe5 {[%clk 0:01:51]} 14. Bg3 {[%clk 0:00:38]}  Nf6 {[%clk 0:01:44]} 15. h3 {[%clk 0:00:38]}  Bh5 {[%clk 0:01:44]} 16. Qb5 {[%clk 0:00:36]}  Ne4 {[%clk 0:01:37]} 17. Qxd5 {[%clk 0:00:28]}  Nxg3 {[%clk 0:01:36]} 18. fxg3 {[%clk 0:00:29]}  Bf7 {[%clk 0:01:22]} 19. Qe4 {[%clk 0:00:29]}  Bg6 {[%clk 0:01:16]} 20. Qg4+ {[%clk 0:00:12]}  Kb8 {[%clk 0:01:14]} 21. Nh4 {[%clk 0:00:11]}  Bf7 {[%clk 0:01:08]} 22. Bc4 {[%clk 0:00:11]}  Rhf8 {[%clk 0:00:46]} 23. Bxf7 {[%clk 0:00:11]}  Qxf7 {[%clk 0:00:46]} 24. Qa4 {[%clk 0:00:10]}  e4 {[%clk 0:00:44]} 25. Kb1 {[%clk 0:00:09]}  g5 {[%clk 0:00:44]} 26. Rhf1 {[%clk 0:00:03]}  Qxf1 {[%clk 0:00:42]} 27. Rxf1 {[%clk 0:00:04]}  Rxf1+ {[%clk 0:00:42]} 28. Kc2 {[%clk 0:00:05]}  gxh4 {[%clk 0:00:42]} 29. gxh4 {[%clk 0:00:05]}  e3 {[%clk 0:00:43]} 30. Qg4 {[%clk 0:00:05]}  e2 {[%clk 0:00:41]} 31. Qg3+ {[%clk 0:00:00]}  Ka8 {[%clk 0:00:41]} 0-1


[Site "https://www.chess.com"]

[Event "Titled Tuesday Blitz July 4 Early 2023"]
[White "Bazilius, Augustinas"]
[Black "Le Ruyet, Leopold"]
[WhiteFideId "12832251"]
[BlackFideId "645923"]
[WhiteElo "2417"]
[BlackElo "2629"]
[Result "0-1"]
[Round "4"]
[TimeControl "180+2"]
[Date "2023.07.04"]
[WhiteClock "0:00:20"]
[BlackClock "0:01:13"]
[Board "140"]

1. d4 {[%clk 0:03:00]}  d5 {[%clk 0:03:00]} 2. c4 {[%clk 0:03:00]}  c6 {[%clk 0:03:00]} 3. Nf3 {[%clk 0:03:00]}  Nf6 {[%clk 0:03:00]} 4. g3 {[%clk 0:03:01]}  e6 {[%clk 0:03:01]} 5. Bg2 {[%clk 0:03:01]}  dxc4 {[%clk 0:02:59]} 6. Ne5 {[%clk 0:03:01]}  b5 {[%clk 0:02:51]} 7. Nxc6 {[%clk 0:03:01]}  Nxc6 {[%clk 0:02:46]} 8. Bxc6+ {[%clk 0:03:02]}  Bd7 {[%clk 0:02:46]} 9. Bxa8 {[%clk 0:03:02]}  Qxa8 {[%clk 0:02:47]} 10. f3 {[%clk 0:02:57]}  h5 {[%clk 0:02:46]} 11. e4 {[%clk 0:02:30]}  Nxe4 {[%clk 0:02:45]} 12. fxe4 {[%clk 0:02:27]}  Qxe4+ {[%clk 0:02:45]} 13. Kf2 {[%clk 0:02:28]}  h4 {[%clk 0:02:39]} 14. Qf3 {[%clk 0:02:06]}  hxg3+ {[%clk 0:02:39]} 15. Kxg3 {[%clk 0:01:55]}  Qxf3+ {[%clk 0:02:33]} 16. Kxf3 {[%clk 0:01:56]}  Bc6+ {[%clk 0:02:33]} 17. Kf2 {[%clk 0:01:56]}  Bxh1 {[%clk 0:02:34]} 18. Nc3 {[%clk 0:01:57]}  b4 {[%clk 0:02:31]} 19. Nb5 {[%clk 0:01:54]}  a6 {[%clk 0:02:27]} 20. Nc7+ {[%clk 0:01:53]}  Kd7 {[%clk 0:02:27]} 21. Nxa6 {[%clk 0:01:53]}  Rxh2+ {[%clk 0:02:26]} 22. Kg1 {[%clk 0:01:54]}  Bd6 {[%clk 0:02:23]} 23. Nxb4 {[%clk 0:01:45]}  Be4 {[%clk 0:02:24]} 24. Na6 {[%clk 0:01:42]}  Bf3 {[%clk 0:02:15]} 25. Nc5+ {[%clk 0:01:20]}  Kc6 {[%clk 0:02:15]} 26. Be3 {[%clk 0:01:17]}  Bg3 {[%clk 0:02:15]} 27. Kf1 {[%clk 0:01:18]}  Rxb2 {[%clk 0:01:57]} 28. a4 {[%clk 0:01:17]}  c3 {[%clk 0:01:50]} 29. Rc1 {[%clk 0:01:00]}  c2 {[%clk 0:01:41]} 30. Nd3 {[%clk 0:00:39]}  Rb1 {[%clk 0:01:41]} 31. Ne5+ {[%clk 0:00:33]}  Bxe5 {[%clk 0:01:39]} 32. dxe5 {[%clk 0:00:33]}  Rxc1+ {[%clk 0:01:35]} 33. Bxc1 {[%clk 0:00:34]}  Kd5 {[%clk 0:01:31]} 34. Kf2 {[%clk 0:00:34]}  Bh1 {[%clk 0:01:28]} 35. Bb2 {[%clk 0:00:22]}  Kc4 {[%clk 0:01:26]} 36. Ke3 {[%clk 0:00:20]}  Kb3 {[%clk 0:01:24]} 37. Bc1 {[%clk 0:00:14]}  Kxa4 {[%clk 0:01:24]} 38. Kd3 {[%clk 0:00:14]}  Kb3 {[%clk 0:01:24]} 39. Ke3 {[%clk 0:00:06]}  Ka2 {[%clk 0:01:15]} 40. Kd3 {[%clk 0:00:07]}  Kb1 {[%clk 0:01:15]} 41. Kd2 {[%clk 0:00:08]}  g5 {[%clk 0:01:15]} 42. Ba3 {[%clk 0:00:08]}  g4 {[%clk 0:01:15]} 43. Ke3 {[%clk 0:00:08]}  c1=Q+ {[%clk 0:01:14]} 44. Bxc1 {[%clk 0:00:08]}  Kxc1 {[%clk 0:01:15]} 45. Kf4 {[%clk 0:00:09]}  Bf3 {[%clk 0:01:15]} 46. Kg3 {[%clk 0:00:10]}  Kd2 {[%clk 0:01:15]} 47. Kh2 {[%clk 0:00:11]}  Ke2 {[%clk 0:01:15]} 48. Kg3 {[%clk 0:00:12]}  Ke3 {[%clk 0:01:15]} 49. Kh2 {[%clk 0:00:13]}  Kf4 {[%clk 0:01:15]} 50. Kg1 {[%clk 0:00:13]}  g3 {[%clk 0:01:15]} 51. Kf1 {[%clk 0:00:14]}  Kxe5 {[%clk 0:01:15]} 52. Kg1 {[%clk 0:00:15]}  Kf4 {[%clk 0:01:15]} 53. Kf1 {[%clk 0:00:16]}  e5 {[%clk 0:01:16]} 54. Kg1 {[%clk 0:00:17]}  e4 {[%clk 0:01:17]} 55. Kf1 {[%clk 0:00:18]}  e3 {[%clk 0:01:18]} 56. Kg1 {[%clk 0:00:18]}  Kg4 {[%clk 0:01:15]} 57. Kf1 {[%clk 0:00:19]}  e2+ {[%clk 0:01:13]} 58. Ke1 {[%clk 0:00:19]}  g2 {[%clk 0:01:14]} 59. Kf2 {[%clk 0:00:20]}  g1=Q+ {[%clk 0:01:12]} 60. Kxg1 {[%clk 0:00:20]}  e1=Q+ {[%clk 0:01:13]} 0-1


[Site "https://www.chess.com"]

[Event "Titled Tuesday Blitz July 4 Early 2023"]
[White "Gomes, Luiz Alexandre de Souza"]
[Black "Manukyan, Sargis V."]
[WhiteFideId "2102790"]
[BlackFideId "13303465"]
[WhiteElo "2415"]
[BlackElo "2621"]
[Result "1-0"]
[Round "4"]
[TimeControl "180+2"]
[Date "2023.07.04"]
[WhiteClock "0:00:58"]
[BlackClock "0:00:02"]
[Board "141"]

1. e4 {[%clk 0:02:57]}  c5 {[%clk 0:02:36]} 2. Nf3 {[%clk 0:02:57]}  Nc6 {[%clk 0:02:35]} 3. Bb5 {[%clk 0:02:56]}  g6 {[%clk 0:02:34]} 4. O-O {[%clk 0:02:56]}  Bg7 {[%clk 0:02:34]} 5. c3 {[%clk 0:02:57]}  e5 {[%clk 0:02:30]} 6. d3 {[%clk 0:02:57]}  Nge7 {[%clk 0:02:29]} 7. Nbd2 {[%clk 0:02:57]}  O-O {[%clk 0:02:29]} 8. h3 {[%clk 0:02:57]}  d6 {[%clk 0:02:29]} 9. Ba4 {[%clk 0:02:56]}  h6 {[%clk 0:02:29]} 10. Re1 {[%clk 0:02:57]}  Kh7 {[%clk 0:02:29]} 11. Nf1 {[%clk 0:02:56]}  f5 {[%clk 0:02:28]} 12. exf5 {[%clk 0:02:57]}  gxf5 {[%clk 0:02:23]} 13. Bc2 {[%clk 0:02:58]}  d5 {[%clk 0:02:21]} 14. Ng3 {[%clk 0:02:52]}  f4 {[%clk 0:02:17]} 15. Nh5 {[%clk 0:02:49]}  Ng6 {[%clk 0:02:01]} 16. Nxg7 {[%clk 0:02:49]}  Kxg7 {[%clk 0:02:01]} 17. b4 {[%clk 0:02:45]}  cxb4 {[%clk 0:02:01]} 18. cxb4 {[%clk 0:02:46]}  Qf6 {[%clk 0:01:31]} 19. b5 {[%clk 0:02:42]}  Nb4 {[%clk 0:01:29]} 20. Bb2 {[%clk 0:02:41]}  d4 {[%clk 0:01:27]} 21. Ba3 {[%clk 0:02:36]}  Nd5 {[%clk 0:01:03]} 22. Bxf8+ {[%clk 0:02:35]}  Kxf8 {[%clk 0:01:04]} 23. Bb3 {[%clk 0:02:34]}  Nc3 {[%clk 0:01:03]} 24. Qd2 {[%clk 0:02:27]}  Bf5 {[%clk 0:01:01]} 25. Rac1 {[%clk 0:02:25]}  Rc8 {[%clk 0:00:54]} 26. Kh2 {[%clk 0:02:14]}  Rc5 {[%clk 0:00:54]} 27. a4 {[%clk 0:02:13]}  b6 {[%clk 0:00:54]} 28. Qb2 {[%clk 0:01:55]}  Bxd3 {[%clk 0:00:51]} 29. Bc2 {[%clk 0:01:34]}  Bxc2 {[%clk 0:00:36]} 30. Rxc2 {[%clk 0:01:34]}  e4 {[%clk 0:00:31]} 31. Nd2 {[%clk 0:01:23]}  f3 {[%clk 0:00:20]} 32. Nxe4 {[%clk 0:01:14]}  Qe5+ {[%clk 0:00:19]} 33. g3 {[%clk 0:01:10]}  Nxe4 {[%clk 0:00:19]} 34. Rxc5 {[%clk 0:01:10]}  bxc5 {[%clk 0:00:16]} 35. Qc2 {[%clk 0:01:08]}  Qf5 {[%clk 0:00:04]} 36. Rxe4 {[%clk 0:01:08]}  Qf7 {[%clk 0:00:03]} 37. Qxc5+ {[%clk 0:01:07]}  Kg7 {[%clk 0:00:04]} 38. Qxd4+ {[%clk 0:01:07]}  Kh7 {[%clk 0:00:04]} 39. Qe3 {[%clk 0:01:05]}  Qa2 {[%clk 0:00:03]} 40. h4 {[%clk 0:01:02]}  Qb1 {[%clk 0:00:03]} 41. h5 {[%clk 0:01:01]}  Qf1 {[%clk 0:00:02]} 42. hxg6+ {[%clk 0:01:01]}  Kg7 {[%clk 0:00:02]} 43. Qxf3 {[%clk 0:00:59]}  Kxg6 {[%clk 0:00:02]} 44. Re6+ {[%clk 0:00:59]}  Kg5 {[%clk 0:00:02]} 45. Qf4+ {[%clk 0:00:59]}  Kh5 {[%clk 0:00:02]} 46. Qh4# {[%clk 0:00:58]} 1-0


[Site "https://www.chess.com"]

[Event "Titled Tuesday Blitz July 4 Early 2023"]
[White "FuenfgegenWilly"]
[Black "Marosi, Levente"]
[BlackFideId "747181"]
[WhiteElo "2385"]
[BlackElo "2587"]
[Result "1-0"]
[Round "4"]
[TimeControl "180+2"]
[Date "2023.07.04"]
[WhiteClock "0:00:53"]
[BlackClock "0:00:10"]
[Board "150"]

1. d4 {[%clk 0:03:00]}  Nf6 {[%clk 0:02:59]} 2. c4 {[%clk 0:03:00]}  g6 {[%clk 0:03:00]} 3. Nc3 {[%clk 0:03:01]}  Bg7 {[%clk 0:03:01]} 4. e4 {[%clk 0:03:01]}  d6 {[%clk 0:03:01]} 5. Nf3 {[%clk 0:02:57]}  O-O {[%clk 0:03:02]} 6. g3 {[%clk 0:02:57]}  e5 {[%clk 0:03:02]} 7. Bg2 {[%clk 0:02:57]}  Nc6 {[%clk 0:03:01]} 8. O-O {[%clk 0:02:55]}  h6 {[%clk 0:02:57]} 9. dxe5 {[%clk 0:02:49]}  dxe5 {[%clk 0:02:57]} 10. Be3 {[%clk 0:02:45]}  Be6 {[%clk 0:02:57]} 11. b3 {[%clk 0:02:38]}  Nd7 {[%clk 0:02:40]} 12. Nd5 {[%clk 0:02:35]}  Ne7 {[%clk 0:02:39]} 13. Qc2 {[%clk 0:02:21]}  c6 {[%clk 0:02:35]} 14. Nxe7+ {[%clk 0:02:21]}  Qxe7 {[%clk 0:02:36]} 15. Rad1 {[%clk 0:02:20]}  Rfd8 {[%clk 0:02:30]} 16. Rd2 {[%clk 0:02:19]}  Nf8 {[%clk 0:02:08]} 17. Rfd1 {[%clk 0:02:17]}  Rxd2 {[%clk 0:02:08]} 18. Rxd2 {[%clk 0:02:18]}  Bg4 {[%clk 0:02:08]} 19. Ne1 {[%clk 0:01:55]}  a5 {[%clk 0:02:08]} 20. h3 {[%clk 0:01:53]}  Be6 {[%clk 0:02:07]} 21. Nd3 {[%clk 0:01:51]}  Nd7 {[%clk 0:02:04]} 22. Kh2 {[%clk 0:01:47]}  g5 {[%clk 0:01:54]} 23. c5 {[%clk 0:01:39]}  f6 {[%clk 0:01:51]} 24. Nb2 {[%clk 0:01:36]}  Bf8 {[%clk 0:01:48]} 25. Na4 {[%clk 0:01:36]}  Qf7 {[%clk 0:01:25]} 26. Bf1 {[%clk 0:01:36]}  Re8 {[%clk 0:01:18]} 27. Qc3 {[%clk 0:01:34]}  Ra8 {[%clk 0:01:16]} 28. Be2 {[%clk 0:01:30]}  Kg7 {[%clk 0:01:12]} 29. Nb2 {[%clk 0:01:26]}  Qe7 {[%clk 0:01:09]} 30. Na4 {[%clk 0:01:16]}  Qf7 {[%clk 0:01:09]} 31. Qc1 {[%clk 0:01:08]}  Qe7 {[%clk 0:00:51]} 32. Bc4 {[%clk 0:01:02]}  Qf7 {[%clk 0:00:45]} 33. Qd1 {[%clk 0:00:58]}  Nb8 {[%clk 0:00:37]} 34. Nb6 {[%clk 0:00:55]}  Bxc4 {[%clk 0:00:24]} 35. bxc4 {[%clk 0:00:54]}  Ra6 {[%clk 0:00:24]} 36. Rd8 {[%clk 0:00:52]}  Rxb6 {[%clk 0:00:10]} 37. cxb6 {[%clk 0:00:53]} 1-0


[Site "https://www.chess.com"]

[Event "Titled Tuesday Blitz July 4 Early 2023"]
[White "Wartiovaara, Oliver"]
[Black "Arat, Ufuk Sezen"]
[WhiteFideId "513024"]
[BlackFideId "6309089"]
[WhiteElo "2382"]
[BlackElo "2574"]
[Result "0-1"]
[Round "4"]
[TimeControl "180+2"]
[Date "2023.07.04"]
[WhiteClock "0:00:43"]
[BlackClock "0:01:28"]
[Board "152"]

1. e4 {[%clk 0:02:59]}  c5 {[%clk 0:03:00]} 2. c3 {[%clk 0:02:58]}  d5 {[%clk 0:03:00]} 3. exd5 {[%clk 0:02:57]}  Qxd5 {[%clk 0:03:00]} 4. d4 {[%clk 0:02:56]}  Nf6 {[%clk 0:03:01]} 5. Nf3 {[%clk 0:02:56]}  Nc6 {[%clk 0:03:01]} 6. Be3 {[%clk 0:02:48]}  cxd4 {[%clk 0:03:00]} 7. Nxd4 {[%clk 0:02:48]}  Nxd4 {[%clk 0:02:55]} 8. Qxd4 {[%clk 0:02:46]}  e6 {[%clk 0:02:49]} 9. Nd2 {[%clk 0:02:41]}  Be7 {[%clk 0:02:46]} 10. Bc4 {[%clk 0:02:33]}  Qxd4 {[%clk 0:02:43]} 11. Bxd4 {[%clk 0:02:32]}  O-O {[%clk 0:02:31]} 12. O-O-O {[%clk 0:02:29]}  Bd7 {[%clk 0:02:28]} 13. Nf3 {[%clk 0:02:21]}  Rfd8 {[%clk 0:02:24]} 14. Bb3 {[%clk 0:02:12]}  b5 {[%clk 0:02:21]} 15. Ne5 {[%clk 0:02:10]}  Be8 {[%clk 0:02:16]} 16. f3 {[%clk 0:02:06]}  a5 {[%clk 0:02:11]} 17. a3 {[%clk 0:01:52]}  b4 {[%clk 0:02:07]} 18. axb4 {[%clk 0:01:50]}  axb4 {[%clk 0:02:08]} 19. Kc2 {[%clk 0:01:32]}  bxc3 {[%clk 0:02:05]} 20. bxc3 {[%clk 0:01:32]}  Nd5 {[%clk 0:02:05]} 21. Ra1 {[%clk 0:01:22]}  Rac8 {[%clk 0:01:58]} 22. Kb2 {[%clk 0:01:16]}  f6 {[%clk 0:01:53]} 23. Nd3 {[%clk 0:01:12]}  e5 {[%clk 0:01:44]} 24. Bb6 {[%clk 0:01:00]}  Rd7 {[%clk 0:01:37]} 25. c4 {[%clk 0:00:55]}  Nxb6 {[%clk 0:01:35]} 26. c5+ {[%clk 0:00:55]}  Nd5 {[%clk 0:01:35]} 27. Nb4 {[%clk 0:00:47]}  Bf7 {[%clk 0:01:33]} 28. c6 {[%clk 0:00:43]}  Rdd8 {[%clk 0:01:28]} 0-1


[Site "https://www.chess.com"]

[Event "Titled Tuesday Blitz July 4 Early 2023"]
[White "San Thit Lwin"]
[Black "Mamedov, Edgar"]
[WhiteFideId "13001272"]
[BlackFideId "13739980"]
[WhiteElo "2376"]
[BlackElo "2552"]
[Result "0-1"]
[Round "4"]
[TimeControl "180+2"]
[Date "2023.07.04"]
[WhiteClock "0:00:17"]
[BlackClock "0:01:29"]
[Board "154"]

1. Nf3 {[%clk 0:03:00]}  d5 {[%clk 0:02:57]} 2. c4 {[%clk 0:03:00]}  c6 {[%clk 0:02:57]} 3. d4 {[%clk 0:03:01]}  Nf6 {[%clk 0:02:58]} 4. Nc3 {[%clk 0:03:01]}  e6 {[%clk 0:02:58]} 5. e3 {[%clk 0:03:01]}  Nbd7 {[%clk 0:02:58]} 6. Qc2 {[%clk 0:03:02]}  Bd6 {[%clk 0:02:57]} 7. Be2 {[%clk 0:03:02]}  O-O {[%clk 0:02:57]} 8. O-O {[%clk 0:02:59]}  dxc4 {[%clk 0:02:56]} 9. Bxc4 {[%clk 0:02:59]}  b5 {[%clk 0:02:57]} 10. Bd3 {[%clk 0:02:58]}  Bb7 {[%clk 0:02:56]} 11. e4 {[%clk 0:02:54]}  e5 {[%clk 0:02:56]} 12. Bg5 {[%clk 0:02:42]}  Qc7 {[%clk 0:02:24]} 13. h3 {[%clk 0:02:26]}  Rfe8 {[%clk 0:02:21]} 14. Rac1 {[%clk 0:02:23]}  a6 {[%clk 0:02:10]} 15. Rfd1 {[%clk 0:02:04]}  exd4 {[%clk 0:02:09]} 16. Nxd4 {[%clk 0:02:03]}  c5 {[%clk 0:02:00]} 17. Nf5 {[%clk 0:01:59]}  Bh2+ {[%clk 0:01:57]} 18. Kh1 {[%clk 0:01:59]}  Bf4 {[%clk 0:01:51]} 19. Bxf6 {[%clk 0:01:32]}  Nxf6 {[%clk 0:01:43]} 20. Rb1 {[%clk 0:01:27]}  c4 {[%clk 0:01:42]} 21. Bf1 {[%clk 0:01:21]}  Nxe4 {[%clk 0:01:41]} 22. Nd5 {[%clk 0:01:01]}  Bxd5 {[%clk 0:01:39]} 23. Rxd5 {[%clk 0:01:00]}  g6 {[%clk 0:01:39]} 24. Nh4 {[%clk 0:00:49]}  Qb6 {[%clk 0:01:31]} 25. Kg1 {[%clk 0:00:17]}  Nxf2 {[%clk 0:01:29]} 0-1


[Site "https://www.chess.com"]

[Event "Titled Tuesday Blitz July 4 Early 2023"]
[White "Thecourseoisildur"]
[Black "Ahn, Hongjin"]
[BlackFideId "13201492"]
[WhiteElo "2542"]
[BlackElo "2370"]
[Result "1-0"]
[Round "4"]
[TimeControl "180+2"]
[Date "2023.07.04"]
[WhiteClock "0:00:56"]
[BlackClock "0:00:01"]
[Board "156"]

1. e4 {[%clk 0:03:00]}  h5 {[%clk 0:03:00]} 2. Bc4 {[%clk 0:02:58]}  h4 {[%clk 0:03:01]} 3. Nf3 {[%clk 0:02:54]}  h3 {[%clk 0:02:56]} 4. Ng5 {[%clk 0:02:38]}  d5 {[%clk 0:02:34]} 5. Qf3 {[%clk 0:01:53]}  Nf6 {[%clk 0:00:25]} 6. exd5 {[%clk 0:01:48]}  hxg2 {[%clk 0:00:24]} 7. Qxg2 {[%clk 0:01:49]}  Rh4 {[%clk 0:00:20]} 8. d3 {[%clk 0:01:36]}  Nbd7 {[%clk 0:00:17]} 9. d6 {[%clk 0:01:30]}  Ne5 {[%clk 0:00:15]} 10. dxc7 {[%clk 0:01:24]}  Qxc7 {[%clk 0:00:13]} 11. Bb5+ {[%clk 0:01:23]}  Bd7 {[%clk 0:00:13]} 12. Bxd7+ {[%clk 0:01:23]}  Nfxd7 {[%clk 0:00:12]} 13. f4 {[%clk 0:01:16]}  Nxd3+ {[%clk 0:00:08]} 14. cxd3 {[%clk 0:00:59]}  Qxc1+ {[%clk 0:00:08]} 15. Ke2 {[%clk 0:00:59]}  Qxb2+ {[%clk 0:00:05]} 16. Nd2 {[%clk 0:01:00]}  Rd8 {[%clk 0:00:02]} 17. Ne6 {[%clk 0:00:57]}  Rh6 {[%clk 0:00:01]} 18. Nc7# {[%clk 0:00:56]} 1-0


[Site "https://www.chess.com"]

[Event "Titled Tuesday Blitz July 4 Early 2023"]
[White "Fernandez, Michael"]
[Black "WindWhistler11"]
[WhiteFideId "5803560"]
[WhiteElo "2366"]
[BlackElo "2542"]
[Result "0-1"]
[Round "4"]
[TimeControl "180+2"]
[Date "2023.07.04"]
[WhiteClock "0:00:01"]
[BlackClock "0:01:15"]
[Board "157"]

1. d4 {[%clk 0:03:00]}  f5 {[%clk 0:02:52]} 2. c4 {[%clk 0:02:53]}  Nf6 {[%clk 0:02:51]} 3. Nc3 {[%clk 0:02:51]}  g6 {[%clk 0:02:51]} 4. g3 {[%clk 0:02:48]}  Bg7 {[%clk 0:02:50]} 5. Bg2 {[%clk 0:02:48]}  O-O {[%clk 0:02:51]} 6. Nf3 {[%clk 0:02:40]}  d6 {[%clk 0:02:52]} 7. O-O {[%clk 0:02:39]}  Nc6 {[%clk 0:02:50]} 8. d5 {[%clk 0:02:37]}  Ne5 {[%clk 0:02:49]} 9. Nxe5 {[%clk 0:02:30]}  dxe5 {[%clk 0:02:50]} 10. e4 {[%clk 0:02:22]}  f4 {[%clk 0:02:48]} 11. gxf4 {[%clk 0:02:03]}  Nh5 {[%clk 0:02:47]} 12. fxe5 {[%clk 0:01:55]}  Bxe5 {[%clk 0:02:45]} 13. Ne2 {[%clk 0:01:24]}  Qd6 {[%clk 0:01:56]} 14. f4 {[%clk 0:01:24]}  Nxf4 {[%clk 0:01:55]} 15. Nxf4 {[%clk 0:01:25]}  Bxf4 {[%clk 0:01:55]} 16. Bxf4 {[%clk 0:01:25]}  Rxf4 {[%clk 0:01:55]} 17. Qd4 {[%clk 0:01:11]}  e5 {[%clk 0:01:49]} 18. Qe3 {[%clk 0:01:03]}  Bg4 {[%clk 0:01:45]} 19. c5 {[%clk 0:00:52]}  Qf6 {[%clk 0:01:44]} 20. Rf2 {[%clk 0:00:47]}  g5 {[%clk 0:01:38]} 21. Raf1 {[%clk 0:00:45]}  Rf8 {[%clk 0:01:39]} 22. Qg3 {[%clk 0:00:40]}  h5 {[%clk 0:01:36]} 23. h3 {[%clk 0:00:34]}  Bc8 {[%clk 0:01:24]} 24. h4 {[%clk 0:00:23]}  g4 {[%clk 0:01:19]} 25. Qe3 {[%clk 0:00:12]}  b6 {[%clk 0:01:18]} 26. b4 {[%clk 0:00:12]}  Ba6 {[%clk 0:01:18]} 27. Rxf4 {[%clk 0:00:04]}  exf4 {[%clk 0:01:17]} 28. e5 {[%clk 0:00:01]}  Bxf1 {[%clk 0:01:15]} 0-1


[Site "https://www.chess.com"]